Cogmind - Beta 12 @@@ ROGUE MODE // 2023.04.03 @ 16:15:03 Player: btmk16 Result: Destroyed by G-50 Soldier with Heavy Laser Performance ------------- Evolutions (1) 500 Regions Visited (6) 1200 Robots Destroyed (94) 470 Value Destroyed (2110) 2110 Prototype IDs (28) 560 Alien Tech Used (0) 0 Bonus (406) 406 TOTAL SCORE: 5246 Bonus ------- High Alert Combat Kills 106 Aligned with FarCom 300 Cogmind --------- Core Integrity 0/400 Matter 56/300 Energy 100/100 System Corruption 6% Temperature Warm (101) Movement Core (50) Location -8/Mines Parts ------- > --- POWER (1) -------- (None) > --- PROPULSION (2) --- (None) > --- UTILITY (4) ------ (None) > --- WEAPON (2) ------- (None) > --- INVENTORY (5) ---- Superbattery (1499) Improved EM Shotgun Improved EM Shotgun Mace Maul Peak State ------------ > --- POWER ------------ Ion Engine > --- PROPULSION ------- Light Treads Light Treads > --- UTILITY ---------- Power Amplifier Cooling System Large Storage Unit Visual Processing Unit > --- WEAPON ----------- Mace Maul > --- INVENTORY -------- High-capacity Storage Unit Huge Storage Unit High-capacity Matter Pod Experimental Sensor Array Hacking Suite Improved EM Shotgun Improved EM Shotgun Improved EM Shotgun Light EM Pulse Cannon Firepult Assault Rifle Improved Assault Rifle Battle Cannon Rocket Launcher [Rating: 22] Favorites ----------- Power Heavy Ion Engine Engine Heavy Ion Engine Propulsion Light Treads Treads Light Treads Utility Large Storage Unit Device Power Amplifier Storage Large Storage Unit Processor Visual Processing Unit Protection Light Armor Plating Weapon Assault Rifle Energy Gun Heavy Particle Gun Ballistic Gun Assault Rifle Ballistic Cannon Battle Cannon Launcher Grenade Launcher Impact Weapon Mace Build | -11 -10 -10 -9 -9 -9 -8 ------- Run | Jun Mat Min Mat Min Exi Min Slots Evolved 2 | . . . 2 . . . Power . | . . . . . . . Propulsion . | . . . . . . . Utility 2 | . . . 2 . . . Weapon . | . . . . . . . Parts Attached 58 | 6 9 1 31 3 2 6 Power 6 | 1 2 . 1 2 . . Engine 6 | 1 2 . 1 2 . . Core . | . . . . . . . Reactor . | . . . . . . . Propulsion 12 | 2 1 . 9 . . . Treads 12 | 2 1 . 9 . . . Leg . | . . . . . . . Wheel . | . . . . . . . Hover . | . . . . . . . Flight . | . . . . . . . Utility 16 | 1 4 1 9 . . 1 Device 6 | . . 1 4 . . 1 Storage 4 | 1 3 . . . . . Processor 2 | . . . 2 . . . Hackware . | . . . . . . . Protection 4 | . 1 . 3 . . . Artifact . | . . . . . . . Weapon 24 | 2 2 . 12 1 2 5 Energy Gun 2 | . . . 2 . . . Energy Cannon . | . . . . . . . Ballistic Gun 15 | 2 1 . 8 1 . 3 Ballistic Cannon 1 | . . . . . . 1 Launcher 3 | . 1 . 1 . . 1 Special Weapon . | . . . . . . . Impact Weapon 3 | . . . 1 . 2 . Slashing Weapon . | . . . . . . . Piercing Weapon . | . . . . . . . Special Melee Weapon . | . . . . . . . Unidentified Prototypes 3 | . . . 3 . . . Parts Lost 15 | . . 1 7 1 . 6 Power 2 | . . . . 1 . 1 Propulsion 4 | . . . 2 . . 2 Utility 5 | . . 1 3 . . 1 Weapon 4 | . . . 2 . . 2 Highest Loss Streak 6 | . . 1 5 1 . 6 To Critical Strikes . | . . . . . . . Average Slot Usage (%) 98 | . 98 99 97 99 100 99 Engine 11 | . 14 14 11 10 11 10 Treads 24 | . 28 28 21 22 22 21 Device 10 | . . 5 5 22 22 22 Storage 12 | . 14 14 11 11 11 11 Processor 9 | . . . 20 11 11 11 Protection 5 | . 12 8 5 . . . Ballistic Gun 18 | . 28 14 18 22 . 15 Launcher 2 | . . 14 . . . . Impact Weapon 1 | . . . . . 22 2 Naked Turns 2 | . . . . . . 2 Heaviest Build 55 | 14 55 36 37 36 33 35 Greatest Support 40 | 40 40 40 40 40 40 40 Greatest Overweight (x) 8 | 1 1 . . . . 8 Average Overweight (x) . | . . . . . . . Largest Inventory Capacity 20 | 8 20 15 15 15 15 15 Average Capacity 14 | 7 10 15 15 15 15 14 Most Carried 15 | 6 11 14 15 15 15 15 Average Carried 12 | 4 7 12 14 14 14 14 Final Capacity 15 | 8 15 15 15 15 15 5 Final Carried 15 | 6 11 14 15 15 14 5 Class Distribution -------------------- 83% | Mutant 16% | Scavenger-Mutant Dominant Class ---------------- Mutant | -10/Materials Mutant | -10/Mines Scavenger-Mutant | -9/Materials Mutant | -9/Mines Mutant | -9/Exiles Mutant | -8/Mines Resources | -11 -10 -10 -9 -9 -9 -8 ----------- Run | Jun Mat Min Mat Min Exi Min Matter Collected 2306 | 338 432 252 744 294 . 246 Remotely . | . . . . . . . Salvage Created 2671 | 119 402 49 1350 408 . 343 Parts 201 | 8 34 4 84 32 . 39 Haulers Intercepted 6 | . 2 . 4 . . . Recyclers Shooed 2 | 1 . . 1 . . . Parts Field Recycled . | . . . . . . . Retrieved Matter . | . . . . . . . Parts Self-Destructed . | . . . . . . . Prevented . | . . . . . . . Kills | -11 -10 -10 -9 -9 -9 -8 ------- Run | Jun Mat Min Mat Min Exi Min Combat Hostiles Destroyed 75 | . 10 11 32 11 . 11 Guns 48 | . 10 . 27 11 . . Cannons 1 | . . . . . . 1 AOE 26 | . . 11 5 . . 10 Classes Destroyed 12 | 2 4 1 4 1 . . Worker 6 | . . . 1 2 . 3 Builder 5 | . . . . 1 . 4 Tunneler 6 | 2 . . . . . 4 Hauler 6 | . 2 . 4 . . . Recycler 1 | 1 . . . . . . Operator 1 | . . . 1 . . . Watcher 2 | . 2 . . . . . Swarmer 24 | . 6 3 7 4 . 4 Grunt 33 | . 4 . 15 7 . 7 Protector 1 | . . . 1 . . . Sentry 9 | . . . 9 . . . Assembled 8 | . . 8 . . . . Best Kill Streak 12 | 3 4 4 5 4 . 12 Combat Bots Only 10 | . 3 4 5 4 . 10 Max Kills in Single Turn 3 | 1 2 3 2 2 . 2 Gunslinging 1 | . 1 . . . . . Exploded 3 | . . 3 2 . . 2 Melee . | . . . . . . . Uniques/NPCs Destroyed . | . . . . . . . Combat | -11 -10 -10 -9 -9 -9 -8 -------- Run | Jun Mat Min Mat Min Exi Min Damage Taken 2720 | . 323 84 1309 308 . 696 Core 460 | . 54 6 148 45 . 207 Absorbed by Shields . | . . . . . . . Core Remaining (%) 88 | 100 . 76 . . . . Volleys Fired 237 | 13 36 18 93 32 . 45 Largest 2 | 2 2 1 2 2 . 2 Hottest 78 | 40 40 30 78 43 . 59 Shots Fired 426 | 26 72 18 183 65 . 62 Gun 368 | 26 72 . 179 65 . 26 Cannon 19 | . . . . . . 19 Launcher 39 | . . 18 4 . . 17 Special . | . . . . . . . Kinetic 361 | 26 72 . 153 65 . 45 Thermal 26 | . . . 26 . . . Explosive 39 | . . 18 4 . . 17 Electromagnetic . | . . . . . . . Robot Hit Streak 20 | 4 12 5 20 19 . 5 Robot Miss Streak 4 | 2 3 2 2 2 . 4 Penetration Max . | . . . . . . . Secondary Targets 3 | . 2 . . 1 . . Max Gunslinging Chain 1 | . 1 . . 1 . . Shots Hit Robots 287 | 17 53 7 136 46 . 28 Core Hits 153 | 4 22 17 58 18 . 34 Critical Kills 2 | . . . 2 . . . Critical Parts Destroyed . | . . . . . . . Critical Strikes 3 | . . . 3 . . . Burn 1 | . . . 1 . . . Destroy 2 | . . . 2 . . . Melee Attacks 2 | . . . 2 . . . Impact 2 | . . . 2 . . . Slashing . | . . . . . . . Piercing . | . . . . . . . Sneak Attacks . | . . . . . . . Combat Hostiles . | . . . . . . . Follow-up Attacks . | . . . . . . . Damage Inflicted 6087 | 195 690 661 2444 661 . 1436 Guns 3760 | 195 690 . 2038 661 . 176 Cannons 172 | . . . . . . 172 Explosions 2141 | . . 661 393 . . 1087 Melee . | . . . . . . . Ramming 14 | . . . 13 . . 1 Kinetic 3450 | 195 690 . 1556 661 . 348 Thermal 482 | . . . 482 . . . Explosive 2141 | . . 661 393 . . 1087 Electromagnetic . | . . . . . . . Impact . | . . . . . . . Slashing . | . . . . . . . Piercing . | . . . . . . . Highest Corruption 6 | . . . 6 6 6 6 Average Corruption 5 | . . . 4 6 6 6 Corruption Purged . | . . . . . . . Corruption Blocked . | . . . . . . . Effects 90 | . . . 6 32 10 42 Message Errors 24 | . . . 1 10 2 11 Matter Fused 15 | . . . 1 5 2 7 Heat Flow Errors 11 | . . . . 3 1 7 Energy Discharges 11 | . . . . 4 . 7 Parts Rejected 1 | . . . . . . 1 Parts Fused 1 | . . . . . 1 . Data Loss (minor) 7 | . . . 2 2 1 2 Data Loss (major) 3 | . . . . 1 1 1 Misfires 9 | . . . 2 4 . 3 Alerts 4 | . . . . . 2 2 Weapon Failures 4 | . . . . 3 . 1 Overload Shots . | . . . . . . . Overflow Damage 105 | . . 25 . . . 80 Projectiles . | . . . . . . . Explosions 105 | . . 25 . . . 80 Melee . | . . . . . . . Knockbacks 1 | . . . . . . 1 Impact . | . . . . . . . Kinetic 1 | . . . . . . 1 Secondary . | . . . . . . . Self-Inflicted Damage 177 | . . 45 132 . . . Shots 6 | . . 2 4 . . . Rammed 2 | . . . 1 . . 1 Targets Rammed 2 | . . . 1 . . 1 Kicked . | . . . . . . . Crushed . | . . . . . . . Highest Temperature 308 | . 6 . 120 187 183 308 Average Temperature 55 | . 2 . 29 79 94 129 Received Heat Transfer 1008 | . 120 . 423 132 . 333 Effects 3 | . . . . . . 3 Interference 3 | . . . . . . 3 Siege Activations . | . . . . . . . Robots Corrupted . | . . . . . . . Combat Hostiles . | . . . . . . . Parts Fried . | . . . . . . . Impact Corruptions . | . . . . . . . Robots Melted . | . . . . . . . Combat Hostiles . | . . . . . . . Parts Melted 2 | . . . 2 . . . Heat Transferred 962 | . . . 962 . . . Parts Sabotaged . | . . . . . . . Parts Stolen . | . . . . . . . Parts Stripped . | . . . . . . . Power Chain Reactions . | . . . . . . . Missiles Intercepted . | . . . . . . . Alert | -11 -10 -10 -9 -9 -9 -8 ------- Run | Jun Mat Min Mat Min Exi Min Peak Influence 645 | 15 190 119 645 351 . 321 Initial 251 | . 9 2 . 251 . . Average 134 | 5 44 15 294 187 . 90 Maximum Alert Level 2 | . 1 . 2 1 . 1 Low Security (%) 74 | 100 99 100 32 60 . 89 Level 1 19 | . . . 42 39 . 10 Level 2 6 | . . . 25 . . . Level 3 . | . . . . . . . Level 4 . | . . . . . . . Level 5 . | . . . . . . . High Security . | . . . . . . . Max Security . | . . . . . . . Squads Dispatched 6 | . 1 . 5 . . . Investigation 1 | . . . 1 . . . Extermination . | . . . . . . . Reinforcement 4 | . 1 . 3 . . . Assault 1 | . . . 1 . . . Garrison . | . . . . . . . Intercept . | . . . . . . . Searches Triggered . | . . . . . . . Construction Impeded . | . . . . . . . Haulers Reinforced . | . . . . . . . Active Scanning Responses . | . . . . . . . Cargo Convoy Interrupts . | . . . . . . . Stealth | -11 -10 -10 -9 -9 -9 -8 --------- Run | Jun Mat Min Mat Min Exi Min Distress Signals 7 | . 1 . 5 1 . . Communications Jammed . | . . . . . . . Distress Signals . | . . . . . . . Times Spotted 109 | . 18 10 59 11 . 11 Peak Tracking Total 7 | . 5 4 7 4 . 4 Tactical Retreats 9 | . 2 . 7 . . . Traps | -11 -10 -10 -9 -9 -9 -8 ------- Run | Jun Mat Min Mat Min Exi Min Traps Triggered 3 | . . . 3 . . . Indirectly . | . . . . . . . Trap Hack Attempts . | . . . . . . . Triggered . | . . . . . . . Disarmed . | . . . . . . . Reprogrammed . | . . . . . . . Reused . | . . . . . . . Traps Extracted . | . . . . . . . Installed . | . . . . . . . Triggered . | . . . . . . . Machines | -11 -10 -10 -9 -9 -9 -8 ---------- Run | Jun Mat Min Mat Min Exi Min Machines Disabled 3 | . . 1 1 . . 1 Max in Single Turn 1 | . . 1 1 . . 1 Machines Repaired . | . . . . . . . Machines Sabotaged . | . . . . . . . Overloaded Fab Kills . | . . . . . . . Hacking | -11 -10 -10 -9 -9 -9 -8 --------- Run | Jun Mat Min Mat Min Exi Min Machines Accessed 6 | . 2 . 2 . 1 1 Terminals 5 | . 2 . 2 . . 1 Fabricators . | . . . . . . . Repair Stations . | . . . . . . . Recycling Units . | . . . . . . . Scanalyzers . | . . . . . . . Garrison Access . | . . . . . . . Total Hacks 17 | . 9 . 6 . 1 1 Successful 7 | . 3 . 2 . 1 1 Failed 9 | . 5 . 4 . . . Catastrophic . | . . . . . . . Database Lockouts 1 | . 1 . . . . . Manual 10 | . 4 . 4 . 1 1 Terminals 16 | . 9 . 6 . . 1 Fabricators . | . . . . . . . Repair Stations . | . . . . . . . Recycling Units . | . . . . . . . Scanalyzers . | . . . . . . . Garrison Access . | . . . . . . . Terminal Hacks 6 | . 3 . 2 . 1 . Robot Analysis 1 | . 1 . . . . . Prototype ID Bank 1 | . 1 . . . . . Emergency Access Points 1 | . . . 1 . . . Alert Level 1 | . 1 . . . . . Zone Layout 1 | . . . 1 . . . EX-Prototype ID Bank 1 | . . . . . 1 . Fabricator Hacks . | . . . . . . . Repair Station Hacks . | . . . . . . . Recycling Unit Hacks . | . . . . . . . Scanalyzer . | . . . . . . . Garrison Access Hacks . | . . . . . . . Unauthorized Hacks 1 | . . . . . . 1 Terminals 1 | . . . . . . 1 Botnet 1 | . . . . . . 1 Fabricators . | . . . . . . . Repair Stations . | . . . . . . . Recycling Units . | . . . . . . . Scanalyzers . | . . . . . . . Garrison Access . | . . . . . . . Data Cores Recovered . | . . . . . . . Used . | . . . . . . . Hacking Detections 5 | . 2 . 2 . . 1 Full Trace Events 1 | . . . 1 . . . Feedback Events 1 | . . . 1 . . . Corruption 1 | . . . 1 . . . Feedback Blocked . | . . . . . . . Robot Schematics Acquired . | . . . . . . . Robots Built . | . . . . . . . Authchips . | . . . . . . . Time . | . . . . . . . Total Robot Build Rating . | . . . . . . . Part Schematics Acquired . | . . . . . . . Parts Built . | . . . . . . . Authchips . | . . . . . . . Time . | . . . . . . . Total Part Build Rating . | . . . . . . . Parts Repaired . | . . . . . . . Time . | . . . . . . . Parts Recycled . | . . . . . . . Recycled Matter . | . . . . . . . Retrieved Matter . | . . . . . . . Retrieved Components . | . . . . . . . Parts Scanalyzed . | . . . . . . . Part Schematics Acquired . | . . . . . . . Parts Damaged . | . . . . . . . Bothacking | -11 -10 -10 -9 -9 -9 -8 ------------ Run | Jun Mat Min Mat Min Exi Min Used RIF Installer . | . . . . . . . Robots Hacked . | . . . . . . . Non-combat . | . . . . . . . Combat . | . . . . . . . Robot Hacks Applied . | . . . . . . . Relay Couplers Released . | . . . . . . . Fabnet Peak Effective % . | . . . . . . . Robots Rewired . | . . . . . . . Allies Hacked . | . . . . . . . Hacks Repelled . | . . . . . . . Allies | -11 -10 -10 -9 -9 -9 -8 -------- Run | Jun Mat Min Mat Min Exi Min Total Allies . | . . . . . . . Largest Group . | . . . . . . . Highest-Rated Group . | . . . . . . . Highest-Rated Ally . | . . . . . . . Total Orders . | . . . . . . . Ally Attacks . | . . . . . . . Total Damage . | . . . . . . . Kills . | . . . . . . . Allies Corrupted . | . . . . . . . Allies Melted . | . . . . . . . Intel | -11 -10 -10 -9 -9 -9 -8 ------- Run | Jun Mat Min Mat Min Exi Min Robot Analysis Total 1 | . 1 . . . . . Derelict Logs Recovered 1 | . . 1 . . . . Drone Launches . | . . . . . . . Drone Recoveries . | . . . . . . . Exploration | -11 -10 -10 -9 -9 -9 -8 ------------- Run | Jun Mat Min Mat Min Exi Min Turns Passed 7535 | 149 1398 1274 1902 1019 363 1430 Spaces Moved 4065 | 63 775 756 918 570 222 761 Core 7 | 5 . . . . . 2 Treads 4058 | 58 775 756 918 570 222 759 Legs . | . . . . . . . Wheels . | . . . . . . . Hover . | . . . . . . . Flight . | . . . . . . . Fastest Speed 50 | 50 160 160 160 160 160 50 Average Speed 160 | 152 160 160 160 160 160 160 Slowest Speed 450 | 160 240 160 160 160 160 450 Overloaded Moves . | . . . . . . . Propulsion Burnouts . | . . . . . . . Robots Hopped . | . . . . . . . Cave-ins Triggered . | . . . . . . . Exploration Rate (%) 78 | 5 98 99 94 91 64 99 Regions Visited 6 Branch Regions 4 Pre-discovered Areas 1 | . . 1 . . . . Known Exits Taken . | . . . . . . . Unknown Exits Taken 6 | 1 1 1 1 1 1 . Scrap Searched 3 | . . 1 . 1 . 1 Spaces Dug 4 | . . . 2 . . 2 Terrain Destroyed 244 | . . 108 19 . . 117 Melee 2 | . . . 2 . . . Projectile 3 | . . . . . . 3 AOE 239 | . . 108 17 . . 114 Terrain Rammed . | . . . . . . . Walls Destroyed . | . . . . . . . Machines Disabled . | . . . . . . . Actions | -11 -10 -10 -9 -9 -9 -8 --------- Run | Jun Mat Min Mat Min Exi Min Total 4676 | 87 858 802 1172 616 232 909 Wait 239 | . 22 26 92 6 . 93 Move 4059 | 62 774 755 917 569 221 761 Hop . | . . . . . . . Pick Up 36 | 6 8 2 12 2 4 2 Fast Attach 19 | 6 1 1 10 1 . . Attach 7 | . . . 4 . 2 1 Detach 1 | . . . 1 . . . Swap 32 | . 8 . 17 2 . 5 Drop 42 | . 9 . 23 4 5 1 Fire 237 | 13 36 18 93 32 . 45 Melee 2 | . . . 2 . . . Ram . | . . . . . . . Kick . | . . . . . . . Crush 2 | . . . 1 . . 1 Escape Stasis . | . . . . . . . Rewire . | . . . . . . . Trap . | . . . . . . . Miscellaneous . | . . . . . . . Route ------- -11/Junkyard -10/Materials (discovered 5 exits: *Mat x3 / [*Min x2]) -10/Mines (discovered 2 exits: *Mat x2) -9/Materials (discovered 3 exits: [*Mat x2] / [*Min]) -9/Mines (discovered 3 exits: [*Mat x2] / *Exi) -9/Exiles (discovered 2 exits: *Min x2) -8/Mines (discovered 2 exits: [*Mat x2]) History --------- Turn | Location | Event 41 | -11/Junkyard | Discovered new exit (range 16) 150 | -11/Junkyard | Entered Materials 180 | -10/Materials | Central database locked down 308 | -10/Materials | Build established: Mutant 426 | -10/Materials | Discovered new exit (range 6) 672 | -10/Materials | Discovered new exit (range 15) 717 | -10/Materials | Discovered new exit (range 11) 803 | -10/Materials | Discovered new exit (range 15) 1142 | -10/Materials | Discovered new exit (range 12) 1548 | -10/Materials | Entered Mines 1643 | -10/Mines | Learned Materials garrison access intel 1855 | -10/Mines | Discovered new exit (range 8) 1901 | -10/Mines | Learned location of Storage (-7) 1963 | -10/Mines | Assembled infested the area 2419 | -10/Mines | Discovered new exit (range 14) 2721 | -10/Mines | A weapon hastily lodged in a ceiling crevice suddenly fell to the ground 2822 | -10/Mines | Entered Materials 2822 | -9/Materials | Evolved 2 slots: Utility x2 3117 | -9/Materials | Discovered new exit (range 8) 3463 | -9/Materials | Build established: Scavenger-Mutant 3988 | -9/Materials | Discovered new exit (range 17) 4220 | -9/Materials | Discovered new exit (range 7) 4422 | -9/Materials | First assault squad dispatched 4604 | -9/Materials | Lost 5 parts (2n2u1w) 4724 | -9/Materials | Entered Mines 4795 | -9/Mines | Build established: Mutant 4810 | -9/Mines | Excavation squad dispatched 4810 | -9/Mines | A large section of the Mines collapsed 5060 | -9/Mines | Excavation squad dispatched 5153 | -9/Mines | Discovered new exit (range 16) 5158 | -9/Mines | Discovered new exit (range 18) 5159 | -9/Mines | Received a Rocket Launcher from a helpful Derelict 5471 | -9/Mines | Found a damaged Exp. Sensor Array with a note attached 5475 | -9/Mines | Found Prototype Device 5640 | -9/Mines | Deemed a non-threat by the Exiles lab entrance 5640 | -9/Mines | Discovered new exit (range 5) 5743 | -9/Mines | Entered Exiles 5769 | -9/Exiles | Discovered new exit (range 16) 5788 | -9/Exiles | Met 8R-AWN 5817 | -9/Exiles | Met EX-HEX 5859 | -9/Exiles | Met EX-BIN 5878 | -9/Exiles | Aligned with FarCom system 5880 | -9/Exiles | Given EX-Vault access code 5921 | -9/Exiles | Opened EX-Vault 5935 | -9/Exiles | Found Firepult 5943 | -9/Exiles | Found Superbattery 5974 | -9/Exiles | Warned to stay clear of 0b10 Research branches 6026 | -9/Exiles | Met EX-DEC 6086 | -9/Exiles | Discovered new exit (range 11) 6106 | -9/Exiles | Left Exiles lab with Superbattery 6106 | -9/Exiles | Entered Mines 6404 | -8/Mines | Discovered new exit (range 6) 6807 | -8/Mines | Core integrity fell below 50% 6857 | -8/Mines | Destroyed 10 combat bots 6911 | -8/Mines | Discovered new exit (range 16) 7524 | -8/Mines | Core integrity fell below 20% 7534 | -8/Mines | Released all parts (3) 7536 | -8/Mines | Destroyed by G-50 Soldier with Heavy Laser Last Messages --------------- 07507_ G-47 Trooper destroyed. 07511_ Cooling System destroyed. 07515_ System corrupted: Heat flow error (+293). 07515_ Assault Rifle destroyed. 07517_ Ion Engine destroyed. 07521_ Lgt. Treads destroyed. 07525_ Overheating: System interference. 07525_ Imp. Terrain Scanner temporarily disabled. 07525_ Visual Processing Unit temporarily disabled. 07525_ Lgt. Treads destroyed. 07526_ G-47 Trooper knocked back. 07528_ Acquired 40 matter. 07532_ System corrupted: Power Amplifier rejected. 07534_ Battle Cannon destroyed. 07534_ Released Lrg. Storage Unit. 07534_ Released Visual Processing Unit. 07534_ Released Imp. Terrain Scanner. 07534_ Dropped Hcp. Storage Unit. 07535_ Extracted 1 energy. 07536_ Acquired Superbattery. Map ----- +----------------------------------------------------+ | ?????# #???#??########??## # ## | | ?????# #???# #?### # # | | ??????# #???# """ """ #?### # # | | ??###### #???# """ """ ### # ##### | | ??# ## ##???# """ """ ## ## # | | ??# ##?##????# ### # | | ??# #### #????????# """ """ #?# #### * | | ??# #??## ##????????# """ """ #?##### =|% | | ??# #???#####?????????# """ "" ###### !*=! | | ??# #?????????????????# ## ## # | | ??# #?????????????????# # #####=# | | ??# #?????????????????### ####### ### #[# | | ??# #???????????????????# #?????# ##?# ##*# | | ??# ###############?????# #?????###??# ## # | | ??# =|! *! #?????# ###??????#######!# | | ??############## #?????# #??????# !# | | ?????????????#?# #?????### #??????# ####### | | ???????????????# #???????# #??##### #?????? | | ???????????????# ##??????# #?## ## #?????? | | ???????????????# ##?????# ### ## #?????? | | ???????????????# ##???## ## #??#### | | ???????????????# #??## ## #### # | | ??????????????### t #?## ### | | ???????????????## ### u ### | | ??????????????## ![! u ######?## | | ??????????????# [@=]### #####???????## | | ?????#????????# !%!![#?## #???????????## | | ??????????????## %]!%##??# #??????????## | | ???????????????# gg#???# #?#####???## | | ???????????????# %##??#!*### ##### | | ???????????????# #??# ## ## | | ???????????????# #?## ] | | ???????????????# ##?# | | ???????????????# ####??# """ | | ???????????????# #?????# """ ###### | | ???????????????# #?????# """ ##????? | | ????#########??# #?????# #?????? | | ????# #??# #?????## ## ##?????? | | ????# #### #?????## #### ##?????? | | ????# ####### ##??# #?????? | | ????# """ ######## ## #???## #?????? | | ????# """ #??#??# #??## #?????? | | ????# """ #???### #?## ##????? | | ????# #?#### ### ## ##???# | | ????########### ## ##### ##### | | ?????????????# ##???# | | ?????????????# ## ##????## | | ?????????????# #### ##??????## | | ?????????????## #??#######????????# | | ??????????????## ##?????????????????## | +----------------------------------------------------+ Best States ------------- Heat Dissipation 50 Energy Generation 15 Energy Capacity 280 Matter Stores 300 Matter Capacity 300 Sight Range 18 Terrain Scan Range 16 Terrain Scan Density 10 Power Amplification 20 Armor Coverage 150 Evasion (%) 40 Recoil Reduction 2 Item Schematics ----------------- None Robot Schematics ------------------ None Fabricated ------------ Nothing Alien Tech Used ----------------- None Achievements -------------- None Challenges ------------ None Game ------ Seed ThermicCommPerforator Manual? 0 Play Time 00:28:26 Cumulative 615.9 hours Start 2023.04.03 @ 15:37:22 End 2023.04.03 @ 16:15:03 Sessions 1 Manual Loads 0 Difficulty Rogue Special Mode None Game No. 633 Rogue 632 Adventurer 0 Explorer 1 Win Type - Total 30 Types 21/0/6/3/0/0/0/0/0 Lore% 84 Gallery% 92 Achievement% 78 Wizard Run 0 Options --------- ASCII 0 Keyboard 1 Movement Vi Keybinds 0 Fullscreen 1 Font 18/SmallcapsGlow Map View 76x50 Tactical HUD 1 Map Filters NONE Filters NONE Steam 1 RUN: 7b21bf21-c222-4b3d-bd1d-00e51146e152